fUST/lending_fUST_20260301
["ID","MTS","AMOUNT","RATE_DAILY","PERIOD"]
[406967490,1772371838600,-500.0,0.00013699,2]
[406967491,1772371838611,-500.0,0.00013699,2]
[406967492,1772371838621,-500.0,0.00013699,2]
[406967493,1772371838632,-500.0,0.00013699,2]
[406967494,1772371838642,-500.0,0.00013699,2]
[406967495,1772371838653,-501.00446828,0.00013699,2]
[406967496,1772371838662,-500.98752468,0.00013699,2]
[406967497,1772371838672,-645.31222142,0.00013699,2]
[406967498,1772371838681,-500.0,0.00013699,2]
[406967499,1772371838691,-500.25142066,0.00013699,2]
[406967500,1772371838700,-500.0,0.00013699,2]
[406967501,1772371838710,-500.0,0.00013699,2]
[406967502,1772371838719,-501.36809653,0.00013699,2]
[406967503,1772371838728,-501.46710642,0.00013699,2]
[406967504,1772371838738,-500.0,0.00013699,2]
[406967505,1772371838748,-500.0,0.00013699,2]
[406967506,1772371838757,-455.68703692,0.00013699,2]
[406967507,1772371838767,-500.0,0.00013699,2]
[406967508,1772371838777,-394.35013566,0.00013699,2]
[406967509,1772371838787,-501.64554578,0.00013699,2]
[406967510,1772371838797,-500.0,0.00013699,2]
[406967511,1772371838807,-500.0,0.00013699,2]
[406967512,1772371838816,-500.0,0.00013699,2]
[406967513,1772371838825,-500.0,0.00013699,2]
[406967514,1772371838835,-500.0,0.00013699,2]
[406967515,1772371838844,-500.0,0.00013699,2]
[406967516,1772371838854,-150.0,0.000137,2]
[406967517,1772371838863,-500.0,0.000137,2]
[406967518,1772371838872,-168.14624676,0.00013809,2]
[406967519,1772371838882,-391.202463,0.0001382,2]
[406967520,1772371838892,-1145.8756843,0.00013821,2]
[406967521,1772371838901,-1000.0,0.00013821,2]
[406967522,1772371838911,-1000.0,0.00013821,2]
[406967523,1772371838920,-1000.0,0.00013821,2]
[406967524,1772371838929,-1005.66797579,0.00013821,2]
[406967525,1772371838939,-1000.0,0.00013821,2]
[406967526,1772371838948,-1000.0,0.00013821,2]
[406967527,1772371838958,-500.0,0.00013974,2]
[406967528,1772371838967,-150.01,0.000142,2]
[406967529,1772371838977,-172.02817304,0.00014246,2]
[406967530,1772371838987,-500.0,0.00014246,2]
[406967531,1772371838997,-500.0,0.00014247,2]
[406967532,1772371839007,-501.63051311,0.00014247,2]
[406967533,1772371839016,-595.82683019,0.00014247,2]
[406967534,1772371839027,-507.13268951,0.00014247,2]
[406967535,1772371839037,-1001.28874933,0.00014247,2]
[406967536,1772371839048,-522.21391029,0.00014247,2]
[406967537,1772371839058,-297.6200359,0.00014247,2]
[406967538,1772371839068,-502.39102415,0.00014247,2]
[406967539,1772371839077,-1000.0,0.00014247,2]
[406967540,1772371839089,-501.37494635,0.00014247,2]
[406967541,1772371839099,-509.08776966,0.00014247,2]
[406967542,1772371839109,-1000.0,0.00014247,2]
[406967543,1772371839119,-1000.0,0.00014247,2]
[406967544,1772371839129,-500.0,0.00014248,2]
[406967545,1772371839138,-1500.0,0.00014368,2]
[406967546,1772371839148,-1500.0,0.00014368,2]
[406967547,1772371839158,-1500.0,0.00014368,2]
[406967548,1772371839168,-1500.0,0.00014368,2]
[406967549,1772371839178,-1500.0,0.00014368,2]
[406967550,1772371839188,-1631.531666,0.000144,2]
[406967551,1772371839197,-500.0,0.00014522,2]
[406967552,1772371839207,-290.0,0.00014551,2]
[406967553,1772371839217,-420.0,0.00014551,2]
[406967554,1772371839226,-1680.0,0.00014599,2]
[406967555,1772371839236,-1006.76483158,0.00014701,2]
[406967556,1772371839246,-500.0,0.00014796,2]
[406967557,1772371839255,-1631.531666,0.00015006,2]
[406967558,1772371839265,-177.0,0.00015272,2]
[406967559,1772371839275,-1631.531666,0.00015612,2]
[406967560,1772371839285,-150.0,0.00015679,2]
[406967561,1772371839295,-192.78136935,0.00015679,2]
[406967562,1772371839305,-256.21712517,0.00015734,2]
[406967563,1772371839315,-1006.76483158,0.00015783,2]
[406967564,1772371839325,-303.54,0.000158,7]
[406967565,1772371839334,-587.0,0.00015953,2]
[406967566,1772371839344,-2351.0,0.00016059,2]
[406967567,1772371839354,-1631.531666,0.00016218,2]
[406967568,1772371839363,-157.238953,0.00016438,2]
[406967569,1772371839373,-199.78024173,0.00016748,5]
[406967570,1772371839383,-1631.531666,0.00016824,2]
[406967571,1772371839392,-1006.76483158,0.00016866,2]
[406967572,1772371839402,-225.6088857,0.00017272,2]
[406967573,1772371839411,-1631.531666,0.00017431,2]
[406967574,1772371839421,-395.0,0.0001749,2]
[406967575,1772371839612,-2092.0,0.00017665,2]
[406967576,1772371839622,-199.78024173,0.00017748,5]
[406967578,1772371839632,-3306.53367739,0.0001789,2]
[406967580,1772371839641,-697.16,0.00017948,2]
[406967582,1772371839651,-1006.76483158,0.00017948,2]
[406967583,1772371839662,-1780.01,0.0001799,3]
[406967585,1772371839672,-1358.44,0.0001799,3]
[406967588,1772371839682,-679.22,0.0001799,3]
[406967591,1772371839702,-339.61,0.0001799,3]
[406967594,1772371839712,-169.8,0.0001799,3]
[406967597,1772371839722,-509.44,0.0001799,3]
[406967599,1772371839733,-157.442,0.00017998,2]
[406967602,1772371839743,-554.7983455,0.00017998,2]
[406967604,1772371839753,-500.0,0.00017998,2]
[406967606,1772371839763,-500.0,0.00017998,2]
[406967608,1772371839773,-500.0,0.00017998,2]
[406967610,1772371839783,-500.0,0.00017998,2]
[406967612,1772371839793,-500.0,0.00017998,2]
[406967614,1772371839803,-511.51180641,0.00017998,2]
[406967616,1772371839812,-380.69989385,0.00017998,2]
[406967618,1772371839822,-500.0,0.00017998,2]
[406967620,1772371839832,-500.0,0.00017998,2]
[406967622,1772371839841,-500.0,0.00017998,2]
[406967624,1772371839851,-500.0,0.00017998,2]
[406967626,1772371839861,-500.0,0.00017999,2]
[406967628,1772371839871,-500.0,0.00017999,2]
[406967630,1772371839880,-500.0,0.00017999,2]
[406967632,1772371839890,-500.0,0.00017999,2]
[406967635,1772371839900,-500.0,0.00017999,2]
[406967637,1772371839909,-500.0,0.00017999,2]
[406967639,1772371839919,-500.0,0.00017999,2]
[406967641,1772371839929,-500.0,0.00017999,2]
[406967643,1772371839938,-621.83,0.00017999,2]
[406967645,1772371839948,-476.33141264,0.00017999,2]
[406967647,1772371839958,-500.0,0.00017999,2]
[406967649,1772371839967,-2158.89867628,0.00018,2]
[406967651,1772371839977,-106466.0,0.00018,2]
[406967653,1772371839987,-621.78829552,0.00018048,2]
[406967655,1772371839999,-190.27773556,0.00018048,2]
[406967657,1772371840009,-250.0,0.00018048,2]
[406967659,1772371840019,-151.0,0.00018048,2]
[406967661,1772371840029,-250.0,0.00018048,2]
[406967663,1772371840039,-1957.856,0.00018048,2]
[406967666,1772371840049,-151.0,0.00018048,2]
[406967667,1772371840059,-250.0,0.00018048,2]
[406967669,1772371840070,-151.0,0.00018048,2]
[406967670,1772371840079,-250.0,0.00018048,2]
[406967672,1772371840089,-151.0,0.00018048,2]
[406967674,1772371840099,-250.0,0.00018048,2]
[406967676,1772371840109,-187.78006525,0.00018048,2]
[406967678,1772371840119,-194.72792766,0.00018048,2]
[406967681,1772371840129,-201.93286099,0.00018048,2]
[406967683,1772371840139,-250.0,0.00018048,2]
[406967685,1772371840148,-209.40437684,0.00018048,2]
[406967686,1772371840158,-151.0,0.00018048,2]
[406967687,1772371840168,-217.15233878,0.00018048,2]
[406967688,1772371840178,-225.18697532,0.00018048,2]
[406967689,1772371840188,-233.51889341,0.00018048,2]
[406967690,1772371840199,-151.0,0.00018048,2]
[406967691,1772371840209,-250.0,0.00018048,2]
[406967692,1772371840218,-242.15909246,0.00018048,2]
[406967693,1772371840228,-151.0,0.00018048,2]
[406967694,1772371840238,-250.0,0.00018048,2]
[406967695,1772371840248,-500.0,0.00018048,2]
[406967696,1772371840258,-251.11897888,0.00018048,2]
[406967697,1772371840267,-151.0,0.00018048,2]
[406967698,1772371840277,-250.0,0.00018048,2]
[406967699,1772371840287,-500.0,0.00018048,2]
[406967700,1772371840297,-260.4103811,0.00018048,2]
[406967701,1772371840307,-151.0,0.00018048,2]
[406967702,1772371840316,-250.0,0.00018048,2]
[406967703,1772371840326,-500.0,0.00018048,2]
[406967705,1772371840336,-270.0455652,0.00018048,2]
[406967706,1772371840346,-151.0,0.00018048,2]
[406967709,1772371840356,-250.0,0.00018048,2]
[406967711,1772371840366,-500.0,0.00018048,2]
[406967713,1772371840376,-280.03725112,0.00018048,2]
[406967714,1772371840386,-151.0,0.00018048,2]
[406967717,1772371840396,-250.0,0.00018048,2]
[406967719,1772371840406,-500.0,0.00018048,2]
[406967721,1772371840415,-209.0340152,0.00018048,2]
[406967723,1772371840425,-151.0,0.00018048,2]
[406967725,1772371840434,-250.0,0.00018048,2]
[406967727,1772371840443,-250.0,0.00018048,2]
[406967728,1772371840453,-151.0,0.00018048,2]
[406967731,1772371840463,-151.0,0.00018048,2]
[406967733,1772371840473,-1159.82371773,0.00018048,2]
[406967735,1772371840482,-250.0,0.00018048,2]
[406967737,1772371840492,-250.0,0.00018048,2]
[406967739,1772371840501,-250.0,0.00018048,2]
[406967741,1772371840511,-250.0,0.00018048,2]
[406967743,1772371840521,-250.0,0.00018048,2]
[406967746,1772371840530,-250.0,0.00018048,2]
[406967748,1772371840540,-250.0,0.00018048,2]
[406967750,1772371840549,-156.0,0.000181,2]
[406967752,1772371840559,-2030.296672,0.00018103,2]
[406967754,1772371840569,-2105.41764886,0.00018158,2]
[406967756,1772371840578,-716.0,0.000182,2]
[406967758,1772371840588,-2183.31810187,0.00018213,2]
[406967760,1772371840598,-500.0,0.00018249,5]
[406967762,1772371840608,-774.34151722,0.00018268,2]
[406967764,1772371840618,-403.0,0.0001852,2]
[406967766,1772371840627,-247.2341491,0.00018573,2]
[406967768,1772371840637,-10189.4182092,0.00018573,2]
[406967770,1772371840646,-3763.4573872,0.00018573,2]
[406967772,1772371840655,-358.80996364,0.00018595,2]
[406967774,1772371840668,-5000.0,0.00018596,2]
[406967776,1772371840677,-644.79446246,0.00018596,2]
[406967778,1772371840687,-1084.99008589,0.000186,2]
[406967780,1772371840696,-1928.87126381,0.000186,2]
[406967782,1772371840706,-1884.09998183,0.000186,2]
[406967784,1772371840715,-3010.84748835,0.000186,2]
[406967786,1772371840725,-261.49042154,0.000186,2]
[406967788,1772371840734,-298.84619604,0.000186,2]
[406967790,1772371840744,-466.48023413,0.000186,2]
[406967792,1772371840754,-2940.96231539,0.000186,2]
[406967794,1772371840764,-1001.31147237,0.00018635,4]
[406967796,1772371840773,-166.0,0.00018742,2]
[406967798,1772371840783,-166.0,0.00018742,2]
[406967800,1772371840793,-689.0,0.00018742,2]
[406967802,1772371840803,-166.0,0.00018742,2]
[406967805,1772371840812,-689.0,0.00018742,2]
[406967807,1772371840821,-153.0,0.00018742,2]
[406967808,1772371840841,-166.0,0.00018742,2]
[406967810,1772371840850,-689.0,0.00018742,2]
[406967812,1772371840860,-153.0,0.00018742,2]
[406967814,1772371840869,-166.0,0.00018742,2]
[406967817,1772371840879,-689.0,0.00018742,2]
[406967819,1772371840888,-157.74642362,0.00018742,2]
[406967820,1772371840898,-153.0,0.00018742,2]
[406967823,1772371840908,-172.0,0.00018742,2]
[406967824,1772371840918,-689.0,0.00018742,2]
[406967827,1772371840929,-153.0,0.00018742,2]
[406967828,1772371840939,-689.0,0.00018742,2]
[406967830,1772371840948,-153.0,0.00018742,2]
[406967832,1772371840958,-689.0,0.00018742,2]
[406967834,1772371840967,-153.0,0.00018742,2]
[406967836,1772371840977,-689.0,0.00018742,2]
[406967838,1772371840987,-153.0,0.00018742,2]
[406967840,1772371840996,-689.0,0.00018742,2]
[406967842,1772371841006,-166.0,0.00018742,2]
[406967844,1772371841016,-153.0,0.00018742,2]
[406967846,1772371841025,-689.0,0.00018742,2]
[406967848,1772371841034,-166.0,0.00018742,2]
[406967850,1772371841044,-199.92055387,0.00018742,2]
[406967852,1772371841053,-351.0,0.00018742,2]
[406967854,1772371841062,-689.0,0.00018742,2]
[406967856,1772371841072,-166.0,0.00018742,2]
[406967858,1772371841082,-351.0,0.00018742,2]
[406967860,1772371841091,-689.0,0.00018742,2]
[406967862,1772371841101,-166.0,0.00018742,2]
[406967864,1772371841110,-165.0,0.00018742,2]
[406967866,1772371841120,-351.0,0.00018742,2]
[406967868,1772371841129,-166.0,0.00018742,2]
[406967870,1772371841139,-165.0,0.00018742,2]
[406967872,1772371841149,-689.0,0.00018742,2]
[406967874,1772371841158,-166.0,0.00018742,2]
[406967876,1772371841167,-351.0,0.00018742,2]
[406967878,1772371841177,-272.66529528,0.00018742,2]
[406967881,1772371841191,-689.0,0.00018742,2]
[406967883,1772371841200,-338.0,0.00018742,2]
[406967885,1772371841211,-351.0,0.00018742,2]
[406967887,1772371841221,-166.0,0.00018742,2]
[406967889,1772371841231,-689.0,0.00018742,2]
[406967891,1772371841241,-338.0,0.00018742,2]
[406967893,1772371841252,-351.0,0.00018742,2]
[406967895,1772371841263,-166.0,0.00018742,2]
[406967897,1772371841273,-689.0,0.00018742,2]
[406967899,1772371841283,-338.0,0.00018742,2]
[406967900,1772371841292,-351.0,0.00018742,2]
[406967902,1772371841303,-172.0,0.00018742,2]
[406967904,1772371841313,-689.0,0.00018742,2]
[406967906,1772371841323,-338.0,0.00018742,2]
[406967908,1772371841333,-351.0,0.00018742,2]
[406967911,1772371841343,-338.0,0.00018742,2]
[406967913,1772371841353,-351.0,0.00018742,2]
[406967915,1772371841363,-338.0,0.00018742,2]
[406967917,1772371841373,-351.0,0.00018742,2]
[406967919,1772371841383,-689.0,0.00018742,2]
[406967920,1772371841392,-351.0,0.00018742,2]
[406967922,1772371841402,-689.0,0.00018742,2]
[406967925,1772371841412,-351.0,0.00018742,2]
[406967927,1772371841422,-689.0,0.00018742,2]
[406967929,1772371841432,-351.0,0.00018742,2]
[406967931,1772371841441,-338.0,0.00018742,2]
[406967933,1772371841451,-689.0,0.00018742,2]
[406967935,1772371841461,-351.0,0.00018742,2]
[406967937,1772371841471,-689.0,0.00018742,2]
[406967939,1772371841481,-338.0,0.00018742,2]
[406967941,1772371841490,-351.0,0.00018742,2]
[406967943,1772371841501,-689.0,0.00018742,2]
[406967945,1772371841511,-338.0,0.00018742,2]
[406967947,1772371841521,-351.0,0.00018742,2]
[406967949,1772371841531,-338.0,0.00018742,2]
[406967951,1772371841541,-689.0,0.00018742,2]
[406967953,1772371841561,-351.0,0.00018742,2]
[406967955,1772371841571,-338.0,0.00018742,2]
[406967957,1772371841580,-689.0,0.00018742,2]
[406967959,1772371841590,-351.0,0.00018742,2]
[406967961,1772371841600,-338.0,0.00018742,2]
[406967963,1772371841610,-689.0,0.00018742,2]
[406967965,1772371841620,-351.0,0.00018742,2]
[406967967,1772371841630,-689.0,0.00018742,2]
[406967970,1772371841640,-338.0,0.00018742,2]
[406967972,1772371841651,-351.0,0.00018742,2]
[406967974,1772371841661,-338.0,0.00018742,2]
[406967976,1772371841673,-689.0,0.00018742,2]
[406967978,1772371841683,-351.0,0.00018742,2]
[406967979,1772371841692,-338.0,0.00018742,2]
[406967981,1772371841702,-689.0,0.00018742,2]
[406967983,1772371841713,-351.0,0.00018742,2]
[406967986,1772371841723,-689.0,0.00018742,2]
[406967987,1772371841734,-351.0,0.00018742,2]
[406967989,1772371841744,-338.0,0.00018742,2]
[406967992,1772371841754,-689.0,0.00018742,2]
[406967994,1772371841764,-351.0,0.00018742,2]
[406967996,1772371841773,-338.0,0.00018742,2]
[406967998,1772371841784,-338.0,0.00018742,2]
[406968000,1772371841794,-689.0,0.00018742,2]
[406968002,1772371841804,-351.0,0.00018742,2]
[406968003,1772371841814,-338.0,0.00018742,2]
[406968004,1772371841823,-689.0,0.00018742,2]
[406968005,1772371841833,-351.0,0.00018742,2]
[406968006,1772371841844,-338.0,0.00018742,2]
[406968007,1772371841853,-689.0,0.00018742,2]
[406968008,1772371841866,-351.0,0.00018742,2]
[406968009,1772371841876,-338.0,0.00018742,2]
[406968010,1772371841886,-351.0,0.00018742,2]
[406968011,1772371841896,-689.0,0.00018742,2]
[406968012,1772371841906,-338.0,0.00018742,2]
[406968013,1772371841917,-351.0,0.00018742,2]
[406968014,1772371841927,-338.0,0.00018742,2]
[406968015,1772371841938,-351.0,0.00018742,2]
[406968016,1772371841948,-338.0,0.00018742,2]
[406968017,1772371841960,-351.0,0.00018742,2]
[406968018,1772371841971,-338.0,0.00018742,2]
[406968019,1772371841980,-351.0,0.00018742,2]
[406968020,1772371841992,-338.0,0.00018742,2]
[406968021,1772371842001,-351.0,0.00018742,2]
[406968022,1772371842011,-338.0,0.00018742,2]
[406968023,1772371842020,-351.0,0.00018742,2]
[406968024,1772371842030,-338.0,0.00018742,2]
[406968025,1772371842039,-351.0,0.00018742,2]
[406968026,1772371842049,-338.0,0.00018742,2]
[406968027,1772371842058,-689.0,0.00018742,2]
[406968028,1772371842068,-338.0,0.00018742,2]
[406968029,1772371842078,-351.0,0.00018742,2]
[406968030,1772371842088,-338.0,0.00018742,2]
[406968031,1772371842097,-351.0,0.00018742,2]
[406968032,1772371842107,-689.0,0.00018742,2]
[406968033,1772371842116,-338.0,0.00018742,2]
[406968034,1772371842126,-351.0,0.00018742,2]
[406968035,1772371842135,-689.0,0.00018742,2]
[406968036,1772371842145,-338.0,0.00018742,2]
[406968037,1772371842155,-351.0,0.00018742,2]
[406968038,1772371842165,-689.0,0.00018742,2]
[406968039,1772371842174,-338.0,0.00018742,2]
[406968040,1772371842183,-351.0,0.00018742,2]
[406968041,1772371842193,-689.0,0.00018742,2]
[406968042,1772371842202,-338.0,0.00018742,2]
[406968043,1772371842212,-351.0,0.00018742,2]
[406968044,1772371842221,-689.0,0.00018742,2]
[406968045,1772371842231,-338.0,0.00018742,2]
[406968046,1772371842241,-351.0,0.00018742,2]
[406968047,1772371842251,-689.0,0.00018742,2]
[406968048,1772371842261,-351.0,0.00018742,2]
[406968049,1772371842271,-338.0,0.00018742,2]
[406968050,1772371842280,-689.0,0.00018742,2]
[406968051,1772371842290,-351.0,0.00018742,2]
[406968052,1772371842300,-338.0,0.00018742,2]
[406968054,1772371842311,-689.0,0.00018742,2]
[406968055,1772371842320,-351.0,0.00018742,2]
[406968056,1772371842330,-338.0,0.00018742,2]
[406968058,1772371842340,-689.0,0.00018742,2]
[406968060,1772371842349,-338.0,0.00018742,2]
[406968062,1772371842359,-689.0,0.00018742,2]
[406968064,1772371842368,-689.0,0.00018742,2]
[406968066,1772371842378,-375.79255194,0.00018742,2]
[406968068,1772371842388,-338.0,0.00018742,2]
[406968069,1772371842398,-338.0,0.00018742,2]
[406968070,1772371842407,-689.0,0.00018742,2]
[406968071,1772371842417,-689.0,0.00018742,2]
[406968072,1772371842427,-338.0,0.00018742,2]
[406968073,1772371842437,-689.0,0.00018742,2]
[406968074,1772371842447,-338.0,0.00018742,2]
[406968075,1772371842456,-689.0,0.00018742,2]
[406968076,1772371842465,-338.0,0.00018742,2]
[406968077,1772371842475,-689.0,0.00018742,2]
[406968078,1772371842486,-338.0,0.00018742,2]
[406968079,1772371842497,-689.0,0.00018742,2]
[406968080,1772371842508,-338.0,0.00018742,2]
[406968081,1772371842518,-338.0,0.00018742,2]
[406968082,1772371842528,-689.0,0.00018742,2]
[406968083,1772371842537,-689.0,0.00018742,2]
[406968084,1772371842722,-689.0,0.00018742,2]
[406968085,1772371842732,-689.0,0.00018742,2]
[406968086,1772371842743,-338.0,0.00018742,2]
[406968087,1772371842752,-689.0,0.00018742,2]
[406968088,1772371842762,-338.0,0.00018742,2]
[406968089,1772371842771,-689.0,0.00018742,2]
[406968090,1772371842783,-338.0,0.00018742,2]
[406968091,1772371842791,-689.0,0.00018742,2]
[406968092,1772371842799,-338.0,0.00018742,2]
[406968093,1772371842808,-689.0,0.00018742,2]
[406968094,1772371842817,-689.0,0.00018742,2]
[406968095,1772371842826,-689.0,0.00018742,2]
[406968096,1772371842835,-689.0,0.00018742,2]
[406968097,1772371842846,-689.0,0.00018742,2]
[406968098,1772371842856,-689.0,0.00018742,2]
[406968099,1772371842865,-689.0,0.00018742,2]
[406968100,1772371842875,-689.0,0.00018742,2]
[406968101,1772371842885,-689.0,0.00018742,2]
[406968102,1772371842895,-689.0,0.00018742,2]
[406968103,1772371842904,-689.0,0.00018742,2]
[406968104,1772371842914,-689.0,0.00018742,2]
[406968105,1772371842924,-689.0,0.00018742,2]
[406968106,1772371842934,-689.0,0.00018742,2]
[406968107,1772371842943,-689.0,0.00018742,2]
[406968108,1772371842953,-689.0,0.00018742,2]
[406968109,1772371842962,-689.0,0.00018742,2]
[406968110,1772371842971,-689.0,0.00018742,2]
[406968111,1772371842980,-689.0,0.00018742,2]
[406968112,1772371842989,-823.20451883,0.00018742,2]
[406968113,1772371842999,-230.42699672,0.00018748,5]
[406968114,1772371843010,-5000.0,0.000188,3]
[406968115,1772371843020,-151.0,0.000188,2]
[406968116,1772371843030,-1900.0,0.000188,2]
[406968117,1772371843041,-164.0,0.000188,3]
[406968118,1772371843051,-164.0,0.000188,3]
[406968119,1772371843060,-500.0,0.00018821,30]
[406968120,1772371843071,-500.0,0.00018821,30]
[406968121,1772371843083,-716.0,0.0001884,2]
[406968122,1772371843093,-168.0,0.0001885,2]
[406968123,1772371843102,-3506.68358924,0.00018874,2]
[406968124,1772371843111,-436.36672682,0.0001895,2]
[406968125,1772371843121,-358.81,0.00018993,2]
[406968126,1772371843131,-39599.60479056,0.00019,120]
[406968127,1772371843141,-387.17705339,0.00019,2]
[406968128,1772371843151,-1000.0,0.00019,2]
[406968129,1772371843161,-28459.19745696,0.00019,2]
[406968130,1772371843170,-151.0,0.00019,2]
[406968131,1772371843180,-164.57384165,0.00019,2]
[406968132,1772371843189,-786.0,0.00019,2]
[406968133,1772371843199,-205.0,0.00019035,2]
[406968134,1772371843209,-600.0,0.00019039,2]
[406968135,1772371843218,-255.0,0.00019039,2]
[406968136,1772371843228,-649.0,0.00019142,5]
[406968137,1772371843238,-545.0,0.00019142,5]
[406968138,1772371843248,-668.65185757,0.00019144,2]
[406968139,1772371843258,-716.0,0.0001916,2]
[406968140,1772371843268,-716.0,0.0001916,2]
[406968141,1772371843277,-716.0,0.0001916,2]
[406968142,1772371843287,-1901.0,0.000192,2]
[406968143,1772371843296,-151.0,0.000192,2]
[406968144,1772371843306,-3560.02,0.0001936,3]
[406968145,1772371843316,-2716.88,0.0001936,3]
[406968146,1772371843325,-1358.44,0.0001936,3]
[406968147,1772371843335,-679.22,0.0001936,3]
[406968148,1772371843344,-339.6,0.0001936,3]
[406968149,1772371843354,-3285.0,0.000194,2]
[406968150,1772371843364,-4377.68944296,0.000194,2]
[406968151,1772371843374,-151.0,0.000194,2]
[406968152,1772371843384,-911.64028824,0.00019404,2]
[406968153,1772371843394,-205.0,0.00019419,2]
[406968154,1772371843404,-2341.35597936,0.0001942,2]
[406968155,1772371843414,-59.77909553,0.00019439,2]
[406968156,1772371843424,-2213.3515,0.00019439,2]
[406968157,1772371843434,-2213.3515,0.00019439,2]
[406968158,1772371843444,-2213.3515,0.00019439,2]
[406968159,1772371843454,-2213.3515,0.00019439,2]
[406968160,1772371843464,-2213.3515,0.00019439,2]
[406968161,1772371843475,-2213.3515,0.00019439,2]
[406968162,1772371843485,-2213.3515,0.00019439,2]
[406968163,1772371843496,-2213.3515,0.00019439,2]
[406968164,1772371843506,-2213.3515,0.00019439,2]
[406968165,1772371843515,-2213.3516889,0.00019439,2]
[406968166,1772371843526,-403.0,0.0001948,2]
[406968167,1772371843536,-205.0,0.00019502,2]
[406968168,1772371843546,-1246.71530566,0.0001952,2]
[406968169,1772371843560,-2094.62,0.00019547,2]
[406968170,1772371843570,-151.0,0.000196,2]
[406968171,1772371843580,-151.0,0.000196,2]
[406968172,1772371843594,-205.0,0.00019625,2]
[406968173,1772371843604,-162.0,0.0001963,2]
[406968174,1772371843614,-151.0,0.00019676,2]
[406968175,1772371843624,-693.3919763,0.00019692,2]
[406968176,1772371843634,-744.97886799,0.00019726,2]
[406968177,1772371843644,-41630.84522064,0.000198,2]
[406968178,1772371844134,-381.57532291,0.00018048,2]
[406968179,1772371844143,-1496.42467709,0.000198,2]
[406968186,1772371845716,-500.0,0.00018048,2]
[406968187,1772371845726,-500.0,0.00018048,2]
[406968188,1772371845736,-500.0,0.00018048,2]
[406968189,1772371845747,-500.0,0.00018048,2]
[406968190,1772371845756,-500.0,0.00018048,2]
[406968191,1772371845766,-500.0,0.00018048,2]
[406968192,1772371845775,-500.0,0.00018048,2]
[406968193,1772371845785,-500.0,0.00018048,2]
[406968194,1772371845794,-1583.3045271,0.000198,2]
[406968195,1772371845886,-500.0,0.00018048,2]
[406968196,1772371845898,-4539.10041777,0.000198,2]
[406968225,1772371867892,495.0,0.00013697,2]
[406968226,1772371867921,236.06577957,0.00013697,2]
[406968227,1772371867948,288.59310737,0.00013697,2]
[406968228,1772372280121,240.42,8.991e-05,46]
[406968229,1772372354530,300.0,0.00014924,120]
[406968230,1772372356273,300.0,0.00014924,120]
[406968231,1772372358037,300.0,0.00014924,120]
[406968232,1772372359709,300.0,0.00014924,120]
[406968233,1772372361429,300.0,0.00014924,120]
[406968234,1772372363195,300.0,0.00014924,120]
[406968235,1772372364905,300.0,0.00014924,120]
[406968236,1772372366926,300.0,0.00014924,120]
[406968237,1772372438964,300.0,0.00014905,120]
[406968238,1772372440687,300.0,0.00014905,120]